{"text_format":"1","workbook":"xlsx","n_sheets":5,"sheets":["Undervisningsrom-Semrom","Stort møterom","Lite møterom","Multirom","Sosiale soner"],"not_rendered":{"charts":0,"images":0,"macros":1,"external_links":0,"defined_names":1,"comments":3,"pivot_tables":0},"unopened":[],"bounds":{"document_bytes":16777216,"sheet_cells":100000,"rows_first":2000,"rows_last":500,"rows_between":2000,"halvings":0,"cell_chars":16384,"cell_head_chars":4096},"cells_cut":0,"cells_raw":0,"read":"whole","date_system":"1900"}

{"sheet":"Undervisningsrom-Semrom","index":0,"n_rows":67,"n_cols":6,"rows_kept":67,"cut":false,"hidden":false,"merged":[[58,0,59,0],[0,0,0,3],[1,0,1,1],[1,2,1,3],[1,4,1,5],[2,0,2,4]]}
[]
["Leverandøren skal kun fylle ut fargede ruter",null,"Navn på leverandør:"]
["NB! Vi ønsker spesifisering av produkter i alle romkategorier. Dette føyes inn som ekstra linjer i regnearkene for hver romkategori. Priser skal oppgis i NOK eksl. mva. "]
[null,"Ønsket produkt ","Beskrivelse av produkt","Enh.pris NOK","Mengde","Sum"]
[]
[null,null,null,null,null,{"$f":"D6*E6","v":0}]
[null,null,null,null,null,0]
[null,"Visningsflate"]
[null,null,null,null,null,{"$f":"D8*E8","v":0}]
[null,null,null,null,null,0]
[null,null,null,null,null,0]
[null,null,null,null,null,0]
[null,null,null,null,null,0]
[null,"Styringssystem/styreflate"]
[null,null,null,null,null,0]
[null,null,null,null,null,{"$f":"D16*E16","v":0}]
[null,null,null,null,null,0]
[null,null,null,null,null,0]
[null,null,null,null,null,{"$f":"D19*E19","v":0}]
[null,null,null,null,null,0]
[null,null,null,null,null,0]
[null,"Bildeprosessor"]
[null,null,null,null,null,{"$f":"D23*E23","v":0}]
[null,null,null,null,null,0]
[null,null,null,null,null,0]
[]
[null,null,null,null,null,0]
[null,"AV-rack",null,null,null,0]
[null,null,null,null,null,0]
[]
[]
[null,"Kamera"]
[]
[]
[]
[null,"Lyd"]
[null,null,null,null,null,0]
[null,"Cable Cubby",null,null,null,0]
[null,"Adapterring",null,null,null,0]
[null,"AV-kabelpakke",null,null,null,0]
[null,null,null,null,null,0]
[null,null,null,null,null,0]
[null,"Montering",null,null,null,0]
[null,"Programmering",null,null,null,0]
[null,"Programmering DSP",null,null,null,0]
[]
[]
[null,"Opsjoner"]
[null,"Opptaksløsning",null,null,null,{"$f":"D49*E49","v":0}]
[]
["Annet"]
["Arbeidspenger installasjon"]
["Arbeidspenger testing"]
["Arbeidspenger leveranse koordinator"]
["Totalsum",null,null,null,null,{"$f":"SUM(F6:F54)","v":0}]
[]
[]
["TIMESPRISER"]
[null,"Timespris 07:00 - 16:00 hverdager ","Timespris utover ordinær arbeidstid Hverdager    16:00 -21:00                                ","Timespris utover ordinær arbeidstid Hverdager 21:00 -07:00","Timespris                               helg og helligdager             07:00-18:00"]
[]
["Montør m/fagbrev                   "]
["Lærling                                         "]
[]
[]
[]
[]
["2. Påslagsprosenter på nettoprislister"]

{"sheet":"Stort møterom","index":1,"n_rows":60,"n_cols":6,"rows_kept":60,"cut":false,"hidden":false,"merged":[[51,0,52,0],[0,0,0,3],[1,0,1,1],[1,2,1,3],[1,4,1,5],[2,0,2,4]]}
[]
["Leverandøren skal kun fylle ut fargede ruter",null,"Navn på leverandør:"]
["NB! Vi ønsker spesifisering av produkter i alle romkategorier. Dette føyes inn som ekstra linjer i regnearkene for hver romkategori. Priser skal oppgis i NOK eksl. mva. "]
[null,"Ønsket produkt ","Beskrivelse av produkt","Enh.pris NOK","Mengde","Sum"]
[]
[null,null,null,null,null,{"$f":"D6*E6","v":0}]
[null,null,null,null,null,0]
[null,"Visningsflate"]
[null,null,null,null,null,{"$f":"D8*E8","v":0}]
[null,null,null,null,null,0]
[null,null,null,null,null,0]
[null,null,null,null,null,0]
[null,null,null,null,null,0]
[null,"Styringssystem/styreflate"]
[null,null,null,null,null,0]
[null,null,null,null,null,0]
[null,null,null,null,null,0]
[null,null,null,null,null,0]
[null,null,null,null,null,0]
[null,null,null,null,null,0]
[null,null,null,null,null,0]
[null,"Bildeprosessor"]
[null,null,null,null,null,{"$f":"D23*E23","v":0}]
[null,null,null,null,null,0]
[null,null,null,null,null,0]
[]
[null,"Kamera"]
[]
[]
[]
[null,"Lyd"]
[null,null,null,null,null,0]
[null,"Cable Cubby",null,null,null,0]
[null,"Adapterring",null,null,null,0]
[null,"AV-kabelpakke",null,null,null,0]
[null,null,null,null,null,0]
[null,null,null,null,null,0]
[null,"Montering",null,null,null,0]
[null,"Programmering",null,null,null,0]
[null,"Programmering DSP",null,null,null,0]
[]
[]
[]
["Annet"]
["Arbeidspenger installasjon"]
["Arbeidspenger testing"]
["Arbeidspenger leveranse koordinator"]
["Totalsum",null,null,null,null,{"$f":"SUM(F6:F47)","v":0}]
[]
[]
["TIMESPRISER"]
[null,"Timespris 07:00 - 16:00 hverdager ","Timespris utover ordinær arbeidstid Hverdager    16:00 -21:00                                ","Timespris utover ordinær arbeidstid Hverdager 21:00 -07:00","Timespris                               helg og helligdager             07:00-18:00"]
[]
["Montør m/fagbrev                   "]
["Lærling                                         "]
[]
[]
[]
[]
["2. Påslagsprosenter på nettoprislister"]

{"sheet":"Lite møterom","index":2,"n_rows":52,"n_cols":6,"rows_kept":52,"cut":false,"hidden":false,"merged":[[43,0,44,0],[0,0,0,3],[1,0,1,1],[1,2,1,3],[1,4,1,5],[2,0,2,4]]}
[]
["Leverandøren skal kun fylle ut fargede ruter",null,"Navn på leverandør:"]
["NB! Vi ønsker spesifisering av produkter i alle romkategorier. Dette føyes inn som ekstra linjer i regnearkene for hver romkategori. Priser skal oppgis i NOK eksl. mva. "]
[null,"Ønsket produkt ","Beskrivelse av produkt","Enh.pris NOK","Mengde","Sum"]
[]
[null,null,null,null,null,{"$f":"D6*E6","v":0}]
[null,null,null,null,null,0]
[null,"Visningsflate"]
[null,null,null,null,null,{"$f":"D8*E8","v":0}]
[null,null,null,null,null,0]
[null,null,null,null,null,0]
[null,null,null,null,null,0]
[null,null,null,null,null,0]
[null,"Bildeprosessor"]
[null,null,null,null,null,{"$f":"D15*E15","v":0}]
[null,null,null,null,null,0]
[null,null,null,null,null,0]
[]
[null,"Kamera/videoplanke"]
[]
[]
[]
[null,"Lyd"]
[null,null,null,null,null,0]
[null,"Cable Cubby",null,null,null,0]
[null,"Adapterring",null,null,null,0]
[null,"AV-kabelpakke",null,null,null,0]
[null,null,null,null,null,0]
[null,null,null,null,null,0]
[null,"Montering",null,null,null,0]
[null,"Programmering",null,null,null,0]
[null,"Programmering DSP",null,null,null,0]
[]
[]
[]
["Annet"]
["Arbeidspenger installasjon"]
["Arbeidspenger testing"]
["Arbeidspenger leveranse koordinator"]
["Totalsum",null,null,null,null,{"$f":"SUM(F6:F39)","v":0}]
[]
[]
["TIMESPRISER"]
[null,"Timespris 07:00 - 16:00 hverdager ","Timespris utover ordinær arbeidstid Hverdager    16:00 -21:00                                ","Timespris utover ordinær arbeidstid Hverdager 21:00 -07:00","Timespris                               helg og helligdager             07:00-18:00"]
[]
["Montør m/fagbrev                   "]
["Lærling                                         "]
[]
[]
[]
[]
["2. Påslagsprosenter på nettoprislister"]

{"sheet":"Multirom","index":3,"n_rows":35,"n_cols":6,"rows_kept":35,"cut":false,"hidden":false,"merged":[[0,0,0,1],[0,2,0,3],[0,4,0,5],[1,0,1,4]]}
["Leverandøren skal kun fylle ut fargede ruter",null,"Navn på leverandør:"]
["NB! Vi ønsker spesifisering av produkter i alle romkategorier. Dette føyes inn som ekstra linjer i regnearkene for hver romkategori. Priser skal oppgis i NOK eksl. mva. "]
[null,"Ønsket produkt ","Beskrivelse av produkt","Enh.pris NOK","Mengde","Sum"]
[]
[null,null,null,null,null,{"$f":"D5*E5","v":0}]
[null,null,null,null,null,0]
[null,"Visningsflate"]
[null,null,null,null,null,{"$f":"D7*E7","v":0}]
[null,null,null,null,null,0]
[null,null,null,null,null,0]
[null,null,null,null,null,0]
[null,null,null,null,null,0]
[null,null,null,null,null,{"$f":"D13*E13","v":0}]
[null,null,null,null,null,0]
[null,null,null,null,null,0]
[]
[null,"Kamera/videoplanke"]
[]
[]
[]
[null,"Lyd"]
[null,null,null,null,null,0]
[null,"Adapterring",null,null,null,0]
[null,"AV-kabelpakke",null,null,null,0]
[null,null,null,null,null,0]
[null,null,null,null,null,0]
[null,"Montering",null,null,null,0]
[]
[]
[]
["Annet"]
["Arbeidspenger installasjon"]
["Arbeidspenger testing"]
["Arbeidspenger leveranse koordinator"]
["Totalsum",null,null,null,null,{"$f":"SUM(F5:F34)","v":0}]

{"sheet":"Sosiale soner","index":4,"n_rows":35,"n_cols":6,"rows_kept":35,"cut":false,"hidden":false,"merged":[[0,0,0,1],[0,2,0,3],[0,4,0,5],[1,0,1,4]]}
["Leverandøren skal kun fylle ut fargede ruter",null,"Navn på leverandør:"]
["NB! Vi ønsker spesifisering av produkter i alle romkategorier. Dette føyes inn som ekstra linjer i regnearkene for hver romkategori. Priser skal oppgis i NOK eksl. mva. "]
[null,"Ønsket produkt ","Beskrivelse av produkt","Enh.pris NOK","Mengde","Sum"]
[]
[null,null,null,null,null,{"$f":"D5*E5","v":0}]
[null,null,null,null,null,0]
[null,"Visningsflate"]
[null,null,null,null,null,{"$f":"D7*E7","v":0}]
[null,null,null,null,null,0]
[null,null,null,null,null,0]
[null,null,null,null,null,0]
[null,null,null,null,null,0]
[null,null,null,null,null,0]
[null,null,null,null,null,0]
[null,null,null,null,null,0]
[]
[null,"Lydplanke/høyttalere"]
[]
[]
[]
[]
[null,null,null,null,null,0]
[null,"Adapterring",null,null,null,0]
[null,"AV-kabelpakke",null,null,null,0]
[null,null,null,null,null,0]
[null,null,null,null,null,0]
[null,"Montering",null,null,null,0]
[]
[]
[]
["Annet"]
["Arbeidspenger installasjon"]
["Arbeidspenger testing"]
["Arbeidspenger leveranse koordinator"]
["Totalsum",null,null,null,null,{"$f":"SUM(F5:F34)","v":0}]